bitfinex/quotes_SOLUSD_20240716
["timestamp","ask_amount","ask_price","bid_price","bid_amount"]
[1721135682630,6.3779,156.8,156.74,45.17]
[1721135682829,6.3779,156.8,156.75,6.5493]
[1721135683234,6.3779,156.8,156.76,45.17]
[1721135683422,6.3781,156.79,156.76,45.17]
[1721135683624,6.3781,156.79,156.76,0.17]
[1721135684556,6.3784,156.78,156.75,45.0]
[1721135684741,6.3784,156.78,156.74,45.0]
[1721135684945,6.3787,156.77,156.74,45.0]
[1721135686051,6.3784,156.78,156.74,45.0]
[1721135686240,16.2722,156.82,156.74,51.3798]
[1721135686442,6.3781,156.79,156.75,6.3793]
[1721135686739,6.3784,156.78,156.74,51.3799]
[1721135686942,6.3784,156.78,156.74,45.0]
[1721135687728,6.3791,156.76,156.73,16.2903]
[1721135687935,6.3793,156.76,156.71,6.3808]
[1721135688133,6.3797,156.75,156.71,6.3808]
[1721135688740,6.3797,156.75,156.7,28.5045]
[1721135689140,6.3797,156.75,156.71,6.3811]
[1721135689343,0.33,156.79,156.72,6.3807]
[1721135689672,0.33,156.79,156.73,1.2759114]
[1721135689871,6.7083,156.79,156.74,22.3293]
[1721135690169,6.3788,156.77,156.74,15.9495]
[1721135690664,6.3793,156.76,156.71,15.9525]
[1721135690843,6.3793,156.76,156.72,45.0]
[1721135691232,6.3793,156.76,156.72,52.65639566]
[1721135691659,6.3793,156.76,156.72,51.3805]
[1721135691876,0.33,156.75,156.68,15.9555]
[1721135692045,6.3811,156.72,156.68,15.9555]
[1721135692244,6.3812,156.71,156.68,15.9555]
[1721135692645,6.3809,156.72,156.68,15.9555]
[1721135692859,6.3813,156.71,156.67,6.3826]
[1721135693362,6.3809,156.72,156.68,6.3824]
[1721135693564,6.3808,156.72,156.68,6.3823]
[1721135693861,6.3808,156.72,156.68,7.65861451]
[1721135694159,0.33,156.75,156.69,17.23100488]
[1721135694356,6.3804,156.73,156.69,22.3366]
[1721135694533,0.33,156.75,156.69,15.9547]
[1721135694741,0.33,156.75,156.71,6.3809]
[1721135695075,0.33,156.77,156.71,6.3809]
[1721135695241,6.3799,156.75,156.7,6.3814]
[1721135695448,0.33,156.74,156.69,22.5066]
[1721135695645,0.33,156.76,156.69,22.3366]
[1721135695843,0.33,156.76,156.67,6.3825]
[1721135696065,6.3808,156.72,156.68,45.34]
[1721135696274,6.3812,156.71,156.67,6.3827]
[1721135696763,6.3809,156.72,156.67,6.3827]
[1721135697148,6.3812,156.71,156.67,6.3827]
[1721135697841,6.3808,156.72,156.68,6.3824]
[1721135698474,6.3808,156.72,156.67,6.3826]
[1721135698951,6.3808,156.72,156.68,7.65858695]
[1721135699355,0.33,156.75,156.68,1.27628695]
[1721135699555,6.3808,156.72,156.68,22.3379]
[1721135699953,0.33,156.75,156.7,6.3814]
[1721135700149,6.7098,156.75,156.7,15.9536]
[1721135700354,6.3805,156.73,156.7,15.9536]
[1721135700661,6.3805,156.73,156.69,6.382]
[1721135701268,6.3814,156.71,156.67,22.3388]
[1721135701442,0.33,156.7,156.65,22.3595]
[1721135701647,0.33,156.73,156.65,22.3595]
[1721135702354,6.3821,156.69,156.65,28.743]
[1721135702574,6.3817,156.7,156.66,6.3831]
[1721135702997,6.3813,156.71,156.67,6.3828]
[1721135703309,0.33,156.73,156.68,1.25470654]
[1721135703476,6.3807,156.73,156.69,6.3819]
[1721135703683,6.3801,156.74,156.7,7.6355286]
[1721135703990,0.33,156.73,156.68,15.9558]
[1721135704172,6.3805,156.73,156.69,7.65493269]
[1721135704368,6.38,156.74,156.7,6.3815]
[1721135704896,6.3797,156.75,156.71,7.65718225]
[1721135705199,6.3794,156.76,156.72,6.3805]
[1721135705399,6.3798,156.75,156.71,6.3811]
[1721135705603,6.38,156.74,156.7,22.3349]
[1721135706480,6.3797,156.75,156.71,7.65692902]
[1721135706794,6.379,156.77,156.72,60.9515]
[1721135706963,6.3792,156.76,156.72,16.1215]
[1721135707165,6.3788,156.77,156.73,6.3803]
[1721135708396,6.3792,156.76,156.72,22.5022]
[1721135708584,15.9453,156.79,156.72,1.27597179]
[1721135708783,6.3796,156.75,156.72,1.27597179]
[1721135709170,6.3796,156.75,156.71,28.4971]
[1721135709371,6.3801,156.74,156.71,22.116]
[1721135710098,6.3795,156.76,156.71,28.4968]
[1721135710274,0.33,156.75,156.71,6.5755]
[1721135710582,6.3804,156.73,156.7,0.34]
[1721135710778,6.38,156.74,156.7,51.7215]
[1721135711382,6.3797,156.75,156.71,6.381]
[1721135712301,6.3792,156.76,156.72,6.3807]
[1721135712596,0.33,156.78,156.74,6.3798]
[1721135712597,6.7084,156.78,156.74,6.3798]
[1721135712806,6.3784,156.78,156.74,7.65559533]
[1721135713309,6.3787,156.77,156.73,22.3309]
[1721135713598,6.3784,156.78,156.74,6.3799]
[1721135713903,6.3785,156.78,156.74,7.6556165]
[1721135714194,6.3785,156.78,156.74,6.3798]
[1721135714395,6.378,156.79,156.75,6.3795]
[1721135715397,6.378,156.79,156.75,7.65513521]
[1721135715810,6.378,156.79,156.74,6.3156]
[1721135715811,6.3784,156.78,156.74,12.6955]
[1721135715970,6.3784,156.78,156.75,45.0]
[1721135716277,6.3784,156.78,156.74,12.6955]
[1721135716278,6.3791,156.77,156.74,6.1456]
[1721135716477,6.3791,156.76,156.73,31.8453]
[1721135716686,6.3791,156.76,156.73,15.8946]
[1721135717003,6.3791,156.76,156.72,6.3806]
[1721135717183,6.38,156.74,156.7,28.5333]
[1721135717782,6.3797,156.75,156.71,1.27602538]
[1721135718107,6.3797,156.75,156.71,7.65712538]
[1721135718486,6.3799,156.74,156.7,28.5335]
[1721135718984,6.3804,156.73,156.7,22.1521]
[1721135719378,0.33,156.77,156.7,22.1521]
[1721135719597,6.3802,156.74,156.7,28.5337]
[1721135720784,6.3797,156.75,156.71,6.3811]
[1721135721107,0.33,156.77,156.7,22.1521]
[1721135721108,6.7102,156.74,156.7,22.1521]
[1721135721276,6.3802,156.74,156.7,28.5336]
[1721135721907,6.3802,156.74,156.7,29.8096908]
[1721135722199,6.3802,156.74,156.7,29.80966166]
[1721135722398,6.3802,156.74,156.7,28.5336]
[1721135722794,6.3802,156.74,156.7,28.91041702]
[1721135723102,6.3802,156.74,156.7,28.5336]
[1721135723805,6.3802,156.74,156.71,0.32965353]
[1721135723990,6.3802,156.74,156.7,28.5336]
[1721135724609,6.3804,156.73,156.7,22.1521]
[1721135724988,6.3808,156.72,156.69,15.171]
[1721135725185,6.3808,156.72,156.68,6.3822]
[1721135725595,6.7112,156.71,156.67,22.3387]
[1721135725910,6.3804,156.73,156.69,6.3818]
[1721135727002,6.3809,156.72,156.68,6.3822]
[1721135727310,6.3818,156.7,156.66,12.6492]
[1721135727614,6.3818,156.7,156.65,15.1946]
[1721135727615,6.7122,156.69,156.65,6.3834]
[1721135727790,0.33,156.69,156.62,6.5286]
[1721135728390,0.33,156.69,156.63,1.27676267]
[1721135728391,6.3829,156.67,156.63,1.27676267]
[1721135728704,6.7133,156.66,156.62,6.5286]
[1721135729217,6.3833,156.66,156.62,6.5286]
[1721135729510,6.3828,156.67,156.63,6.3844]
[1721135729708,6.7133,156.66,156.62,12.9133]
[1721135729923,6.3833,156.66,156.62,12.9133]
[1721135730092,6.3833,156.66,156.62,6.5286]
[1721135730289,6.7136,156.65,156.62,6.5286]
[1721135730614,0.33,156.64,156.59,12.5009]
[1721135730784,0.33,156.67,156.59,12.5009]
[1721135730984,6.3846,156.63,156.59,6.1153]
[1721135731208,6.3836,156.65,156.6,6.3855]
[1721135731701,0.33,156.67,156.62,6.3848]
[1721135731702,6.3832,156.66,156.62,6.3848]
[1721135731991,6.7137,156.65,156.61,15.9631]
[1721135732397,6.3837,156.65,156.61,22.3481]
[1721135733311,6.3846,156.63,156.59,6.3859]
[1721135733521,6.3846,156.63,156.58,38.8392]
[1721135733895,6.3846,156.63,156.59,6.386]
[1721135734088,6.3846,156.63,156.59,7.66299433]
[1721135734493,6.3841,156.64,156.59,7.66299433]
[1721135734719,6.3841,156.64,156.59,6.386]
[1721135735017,0.33,156.68,156.6,17.24049299]
[1721135735327,6.3841,156.64,156.6,15.9635]
[1721135735619,6.3841,156.64,156.61,1.27693764]
[1721135735819,0.33,156.67,156.61,1.27693764]
[1721135736009,6.3837,156.65,156.61,1.27693764]
[1721135736334,0.33,156.64,156.55,6.0398]
[1721135736640,6.3862,156.59,156.55,12.4274]
[1721135736808,6.3858,156.6,156.56,6.3872]
[1721135737125,6.3862,156.59,156.55,12.4274]
[1721135737626,6.715,156.62,156.58,6.3864]
[1721135737916,6.3846,156.63,156.59,1.27701327]
[1721135738120,6.3846,156.63,156.59,7.66301327]
[1721135738321,15.7255,156.67,156.59,7.66301327]
[1721135738322,0.33,156.66,156.59,1.27701327]
[1721135738496,6.3842,156.64,156.6,0.17]
[1721135738818,0.33,156.66,156.59,45.0]
[1721135739017,6.3849,156.62,156.59,45.0]
[1721135739221,16.2888,156.66,156.55,22.0084]
[1721135739397,16.2888,156.66,156.56,51.557]
[1721135739596,6.3861,156.6,156.56,45.17]
[1721135739817,6.3867,156.58,156.53,15.5884]
[1721135739998,0.33,156.59,156.52,15.9718]
[1721135740202,6.3875,156.56,156.52,22.3607]
[1721135741219,6.3877,156.55,156.52,15.9718]
[1721135741431,6.3885,156.54,156.49,31.75]
[1721135741617,6.3885,156.54,156.49,22.3648]
[1721135741810,6.3885,156.54,156.49,15.9749]
[1721135742012,6.3878,156.55,156.49,15.9749]
[1721135742207,6.3874,156.56,156.51,15.9727]
[1721135742718,6.387,156.57,156.52,45.0]
[1721135743217,6.387,156.57,156.53,0.34]
[1721135743421,0.33,156.59,156.52,45.0]
[1721135743630,6.3873,156.56,156.52,51.3886]
[1721135743940,6.3877,156.55,156.53,1.27748745]
[1721135744105,6.3881,156.54,156.51,15.9727]
[1721135744304,6.3881,156.54,156.5,6.3895]
[1721135744519,6.3881,156.54,156.49,6.39]
[1721135744733,16.2959,156.59,156.49,1.27766268]
[1721135744734,15.9679,156.57,156.49,1.27766268]
[1721135744907,0.33,156.56,156.48,16.8177054]
[1721135745106,0.33,156.56,156.49,1.27769706]
[1721135745502,0.33,156.56,156.48,16.8177054]
[1721135745913,6.3885,156.53,156.49,7.66787092]
[1721135746114,6.389,156.52,156.48,23.2081054]
[1721135746328,6.389,156.52,156.48,16.8177054]
[1721135746514,6.389,156.52,156.48,23.2081054]
[1721135746714,6.3878,156.55,156.51,6.3891]
[1721135747114,6.3872,156.57,156.52,6.3888]
[1721135747502,6.3879,156.55,156.52,1.27751748]
[1721135747810,6.3879,156.55,156.5,22.5335]
[1721135747811,0.33,156.58,156.51,45.0]
[1721135748121,15.9667,156.58,156.5,0.17]
[1721135748433,15.9687,156.56,156.48,0.8419054]
[1721135748609,0.33,156.55,156.48,45.8419054]
[1721135748930,6.3896,156.51,156.48,0.8419054]
[1721135749229,6.3897,156.5,156.48,0.8419054]
[1721135749434,6.389,156.52,156.48,0.8419054]
[1721135749651,0.33,156.53,156.48,2.1198808]
[1721135749932,6.3894,156.51,156.48,0.8419054]
[1721135750313,6.389,156.52,156.48,7.2324054]
[1721135750639,0.33,156.53,156.49,7.6678935]
[1721135750640,6.3885,156.53,156.49,7.6678935]
[1721135751430,0.33,156.56,156.5,6.3896]
[1721135751659,6.3872,156.57,156.53,6.3884]
[1721135751807,6.3873,156.56,156.52,22.3609]
[1721135752003,0.33,156.58,156.52,15.9721]
[1721135752411,6.3882,156.54,156.49,6.3898]
[1721135752614,0.33,156.58,156.49,6.3898]
[1721135752615,6.3886,156.53,156.49,6.3898]
[1721135752840,6.3874,156.56,156.51,6.389]
[1721135753046,0.33,156.57,156.5,62.42186051]
[1721135753047,0.33,156.57,156.5,61.3141]
[1721135753253,0.33,156.57,156.48,0.8419054]
[1721135753428,16.2981,156.57,156.49,0.34]
[1721135753635,6.3881,156.55,156.5,6.3896]
[1721135753947,6.3881,156.55,156.51,6.3893]
[1721135754244,16.2981,156.57,156.5,6.3897]
[1721135754452,6.3884,156.54,156.5,6.3897]
[1721135754830,6.3884,156.54,156.5,7.66739163]
[1721135755143,0.33,156.57,156.51,15.973]
[1721135755447,6.3875,156.56,156.52,7.66646527]
[1721135755634,6.3875,156.56,156.52,1.27756527]
[1721135755839,6.3869,156.57,156.53,6.3885]
[1721135756055,6.3869,156.57,156.54,1.2774475]
[1721135756347,6.7161,156.59,156.55,7.66514245]
[1721135756528,6.3865,156.58,156.55,1.27744245]
[1721135757351,0.33,156.62,156.55,1.27744245]
[1721135757529,6.3854,156.61,156.57,6.3868]
[1721135757836,6.385,156.62,156.58,45.0]
[1721135758026,6.3853,156.61,156.58,45.0]
[1721135758227,6.3857,156.6,156.57,15.967]
[1721135758459,6.3852,156.62,156.58,1.4470931]
[1721135758620,6.3852,156.62,156.58,45.17]
[1721135758820,6.3844,156.64,156.6,6.3855]
[1721135759059,6.3837,156.65,156.61,7.66195641]
[1721135759226,6.3832,156.66,156.62,6.3848]
[1721135759761,0.33,156.68,156.63,7.66094821]
[1721135759924,6.3825,156.68,156.63,7.83094821]
[1721135760127,6.3825,156.68,156.64,6.384]
[1721135760318,6.3825,156.68,156.65,1.27656755]
[1721135760522,0.33,156.72,156.65,1.27656755]
[1721135760753,6.382,156.69,156.65,23.61866755]
[1721135760929,0.33,156.68,156.63,0.17]
[1721135761240,6.3836,156.65,156.6,6.3856]
[1721135761440,6.3836,156.65,156.61,45.0]
[1721135761745,6.3831,156.67,156.59,16.1346]
[1721135762064,0.33,156.66,156.61,6.3851]
[1721135762265,6.3838,156.65,156.61,6.3851]
[1721135762554,6.3838,156.65,156.6,6.5555]
[1721135762751,6.3838,156.65,156.61,6.3851]
[1721135763055,6.3833,156.66,156.62,6.3848]
[1721135763229,0.33,156.7,156.63,51.3844]
[1721135763230,6.3828,156.67,156.63,51.3844]
[1721135763750,6.3833,156.66,156.62,15.9621]
[1721135763937,6.3837,156.65,156.61,6.3851]
[1721135764129,0.33,156.7,156.62,1.27679034]
[1721135764333,6.3824,156.68,156.64,6.3839]
[1721135764648,6.3824,156.68,156.65,15.959]
[1721135764846,6.3832,156.66,156.62,15.9615]
[1721135765048,6.3832,156.66,156.63,45.0]
[1721135765248,6.3832,156.66,156.62,22.3463]
[1721135765441,6.7137,156.65,156.61,6.3851]
[1721135765843,0.33,156.65,156.61,6.3851]
[1721135766019,0.33,156.69,156.61,6.3851]
[1721135766668,6.3833,156.66,156.61,6.3851]
[1721135766850,0.33,156.69,156.62,6.3848]
[1721135767057,6.3833,156.66,156.61,22.3477]
[1721135767554,6.3846,156.63,156.58,12.4297]
[1721135767729,6.3841,156.64,156.6,6.3856]
[1721135767933,0.33,156.65,156.6,6.3856]
[1721135767934,6.7137,156.65,156.6,6.3856]
[1721135768131,0.33,156.64,156.61,6.3851]
[1721135768330,6.7141,156.64,156.59,22.3504]
[1721135768632,6.3841,156.64,156.59,22.3504]
[1721135769056,6.7147,156.63,156.59,15.9647]
[1721135769222,6.7149,156.62,156.58,12.4297]
[1721135769427,0.33,156.65,156.59,6.386]
[1721135769733,6.3844,156.64,156.59,6.386]
[1721135769933,6.7144,156.63,156.59,6.386]
[1721135770147,6.3844,156.63,156.59,6.386]
[1721135770351,0.33,156.62,156.59,6.386]
[1721135770558,0.33,156.62,156.58,15.9658]
[1721135770742,6.7151,156.62,156.58,15.9658]
[1721135770942,6.7154,156.61,156.55,15.9688]
[1721135771131,0.33,156.6,156.56,6.3872]
[1721135771331,6.716,156.6,156.55,22.3562]
[1721135771832,0.33,156.6,156.56,6.387]
[1721135772042,0.33,156.6,156.57,6.3868]
[1721135772238,0.33,156.6,156.55,15.9688]
[1721135772239,6.7157,156.6,156.55,15.9688]
[1721135772439,6.3861,156.59,156.55,22.3564]
[1721135772830,6.3857,156.6,156.56,6.3873]
[1721135773034,6.7162,156.59,156.55,22.3564]
[1721135773332,0.33,156.58,156.55,15.9688]
[1721135773531,0.33,156.6,156.57,6.3866]
[1721135773852,6.7158,156.6,156.56,6.3872]
[1721135774055,0.33,156.59,156.54,6.2391]
[1721135774663,0.33,156.59,156.52,15.972]
[1721135774955,0.33,156.61,156.52,15.972]
[1721135775169,0.33,156.6,156.52,15.972]
[1721135775338,0.33,156.6,156.53,6.3884]
[1721135775739,6.3866,156.58,156.53,6.3884]
[1721135776054,0.33,156.57,156.53,6.3884]
[1721135776638,0.33,156.57,156.54,6.388]
[1721135776836,6.386,156.6,156.55,6.3876]
[1721135777166,6.386,156.6,156.56,6.387]
[1721135777360,6.3862,156.59,156.55,6.3876]
[1721135777857,6.3867,156.58,156.54,15.9699]
[1721135778259,6.387,156.57,156.53,6.3884]
[1721135778938,6.3866,156.58,156.53,6.3884]
[1721135779150,6.3866,156.58,156.51,16.3129]
[1721135779151,0.33,156.6,156.52,6.3888]
[1721135779458,6.3876,156.56,156.52,6.3888]
[1721135779672,6.718,156.55,156.51,15.9729]
[1721135779960,6.388,156.55,156.51,15.9729]
[1721135780150,0.33,156.54,156.51,15.9729]
[1721135780734,0.33,156.58,156.52,6.3887]
[1721135781163,6.3871,156.57,156.52,6.3887]
[1721135781374,6.7174,156.56,156.52,6.3887]
[1721135781668,6.7174,156.56,156.51,22.3621]
[1721135782060,6.3877,156.55,156.51,22.3621]
[1721135782242,0.33,156.58,156.51,22.3622]
[1721135782746,6.3882,156.54,156.51,15.9729]
[1721135782947,6.3882,156.54,156.49,6.3897]
[1721135783147,0.33,156.57,156.5,17.14336069]
[1721135783457,0.33,156.57,156.5,15.974]
[1721135783665,0.33,156.57,156.51,1.27765007]
[1721135783856,0.33,156.58,156.51,1.27765007]
[1721135784055,0.33,156.58,156.52,1.27750162]
[1721135784244,0.33,156.58,156.51,6.3893]
[1721135784245,6.3879,156.55,156.51,6.3893]
[1721135784567,6.3879,156.55,156.5,22.3636]
[1721135784864,0.33,156.58,156.5,15.974]
[1721135785040,6.3869,156.57,156.53,6.3882]
[1721135785237,0.33,156.58,156.52,22.3606]
[1721135785454,6.3876,156.56,156.52,23.63818713]
[1721135785657,6.3866,156.58,156.53,7.66600551]
[1721135785839,6.3866,156.58,156.54,6.388]
[1721135786166,6.3861,156.59,156.55,6.3874]
[1721135786343,6.3865,156.58,156.54,22.3576]
[1721135786849,6.387,156.57,156.53,12.6183]
[1721135787049,6.3873,156.56,156.53,6.2298]
[1721135787253,6.3873,156.56,156.52,6.7288]
[1721135787850,6.387,156.57,156.52,0.34]
[1721135788049,0.33,156.56,156.51,15.9731]
[1721135788548,6.3882,156.54,156.5,6.3896]
[1721135788858,0.33,156.56,156.5,17.20136608]
[1721135789071,6.3875,156.56,156.52,6.3889]
[1721135789436,6.3882,156.54,156.5,22.3638]
[1721135790261,6.3882,156.54,156.5,38.0738]
[1721135791368,0.33,156.53,156.49,15.71]
[1721135791536,0.33,156.56,156.51,15.71]
[1721135792158,0.33,156.57,156.52,15.71]
[1721135792366,0.33,156.59,156.52,15.71]
[1721135792568,6.3874,156.56,156.52,22.0989]
[1721135792752,6.3874,156.56,156.52,23.37656426]
[1721135793164,6.3877,156.55,156.52,15.71]
[1721135793362,6.3875,156.56,156.52,7.66652406]
[1721135793570,6.3877,156.55,156.52,1.27762406]
[1721135793880,6.3877,156.55,156.51,38.0723]
[1721135794082,6.3882,156.54,156.51,31.6831]
[1721135794257,6.3886,156.53,156.49,6.39]
[1721135794461,6.3886,156.53,156.49,22.1]
[1721135795384,6.719,156.52,156.48,23.2080054]
[1721135795585,6.719,156.52,156.48,38.9180054]
[1721135795586,6.389,156.52,156.48,38.9180054]
[1721135796081,6.3896,156.51,156.48,16.8175054]
[1721135796385,6.3891,156.52,156.48,23.2080054]
[1721135796700,6.3886,156.53,156.49,6.39]
[1721135796896,6.3889,156.52,156.48,23.2079054]
[1721135797056,0.33,156.51,156.48,23.2079054]
[1721135797265,6.3882,156.54,156.5,6.3897]
[1721135798377,6.3878,156.55,156.51,6.3893]
[1721135798695,6.3885,156.53,156.5,15.9742]
[1721135798857,6.3885,156.53,156.49,6.39]
[1721135799182,6.3889,156.52,156.48,7.2323054]
[1721135799382,6.3889,156.52,156.49,45.0]
[1721135799587,6.7195,156.51,156.48,0.8419054]
[1721135799753,6.3894,156.51,156.48,0.8419054]
[1721135799950,6.3899,156.5,156.48,0.8419054]
[1721135800152,6.3895,156.51,156.48,0.8419054]
[1721135801287,6.3901,156.49,156.48,0.8419054]
[1721135801575,26.5777,156.55,156.48,0.8419054]
[1721135801576,6.3895,156.51,156.48,0.8419054]
[1721135801791,6.3892,156.52,156.48,8.51014329]
[1721135801975,6.3898,156.5,156.48,0.8419054]
[1721135803064,0.33,156.49,156.48,0.8419054]
[1721135803271,6.3894,156.51,156.48,0.8419054]
[1721135804665,6.3897,156.5,156.48,0.8419054]
[1721135805062,6.3894,156.51,156.48,0.8419054]
[1721135806262,0.33,156.53,156.48,7.2322054]
[1721135806462,0.33,156.54,156.48,7.2322054]
[1721135806659,6.7182,156.54,156.5,6.3896]
[1721135806973,6.3881,156.54,156.5,6.3896]
[1721135807465,6.3885,156.53,156.49,22.3651]
[1721135807868,6.3885,156.53,156.5,1.19652915]
[1721135808070,6.389,156.52,156.5,1.19652915]
[1721135808389,6.3901,156.49,156.48,0.8419054]
[1721135808577,15.9696,156.55,156.48,0.8419054]
[1721135808578,0.33,156.54,156.48,0.8419054]
[1721135808967,6.39,156.5,156.48,0.8419054]
[1721135809194,6.7201,156.49,156.48,0.8419054]
[1721135809484,0.33,156.52,156.48,0.8419054]
[1721135809691,6.3886,156.53,156.48,7.2323054]
[1721135810890,6.3886,156.53,156.49,6.3901]
[1721135811068,0.33,156.54,156.49,6.3901]
[1721135811267,0.33,156.55,156.49,6.3901]
[1721135812184,0.33,156.55,156.49,7.66789705]
[1721135812492,6.3885,156.53,156.49,7.66789705]
[1721135812858,0.33,156.55,156.5,6.3896]
[1721135812859,6.3882,156.54,156.5,6.3896]
[1721135813093,6.3885,156.53,156.51,1.27766964]
[1721135813297,6.3885,156.53,156.49,22.3652]
[1721135813788,6.3881,156.54,156.5,52.66741713]
[1721135814164,0.33,156.56,156.48,7.4478054]
[1721135814366,6.3892,156.52,156.48,13.4982054]
[1721135814565,0.33,156.56,156.48,7.1078054]
[1721135814874,6.389,156.52,156.48,7.1078054]
[1721135815492,6.3884,156.54,156.49,6.39]
[1721135815689,6.3886,156.53,156.5,1.27782785]
[1721135816081,6.3886,156.53,156.48,29.4743054]
[1721135816281,6.3889,156.52,156.49,45.17]
[1721135816586,6.7194,156.51,156.48,0.8419054]
[1721135816769,6.3894,156.51,156.48,0.8419054]
[1721135817775,6.389,156.52,156.48,7.2323054]
[1721135817971,6.3886,156.53,156.48,0.8419054]
[1721135818166,6.3886,156.53,156.49,1.16115316]
[1721135818393,6.3886,156.53,156.49,6.39]
[1721135818572,0.33,156.57,156.5,6.3894]
[1721135818773,6.717,156.57,156.53,6.3885]
[1721135819209,6.387,156.57,156.53,6.3885]
[1721135819374,6.387,156.57,156.52,7.66637826]
[1721135819882,6.3865,156.58,156.54,6.388]
[1721135820077,6.3865,156.58,156.55,1.27733343]
[1721135820571,2.33,156.6,156.51,16.3129]
[1721135820572,6.3876,156.56,156.51,16.3129]
[1721135820773,6.3876,156.56,156.52,45.34]
[1721135820993,6.3876,156.56,156.52,45.74725256]
[1721135821308,6.3876,156.56,156.52,45.34]
[1721135821667,6.3876,156.56,156.52,51.7289]
[1721135822086,15.9659,156.59,156.51,15.9729]
[1721135822291,6.3878,156.55,156.51,15.9729]
[1721135822496,6.3878,156.55,156.52,1.27757269]
[1721135823009,0.33,156.58,156.52,1.27757269]
[1721135823305,6.3869,156.58,156.53,6.3884]
[1721135823507,6.3869,156.57,156.54,1.27738795]
[1721135823706,6.3869,156.57,156.55,1.27730647]
[1721135824085,0.33,156.59,156.55,1.27730647]
[1721135824086,6.3866,156.58,156.55,1.27730647]
[1721135824295,6.3861,156.59,156.56,1.27271699]
[1721135824812,6.3861,156.59,156.53,15.971]
[1721135824813,6.3872,156.57,156.53,22.3592]
[1721135825514,6.3866,156.58,156.54,6.3881]
[1721135825697,2.33,156.6,156.55,6.3877]
[1721135825698,6.3862,156.59,156.55,6.3877]
[1721135826195,6.3862,156.59,156.56,1.27725623]
[1721135827514,2.0,156.6,156.53,22.3594]
[1721135827515,6.3871,156.57,156.53,22.3594]
[1721135827684,6.3871,156.57,156.54,45.34]
[1721135827891,6.3866,156.58,156.54,45.34]
[1721135828120,6.3872,156.57,156.53,23.63678808]
[1721135828418,6.3873,156.56,156.53,15.971]
[1721135828795,6.3869,156.57,156.54,1.27742185]
[1721135828989,6.3866,156.58,156.55,1.27729484]
[1721135829402,6.3869,156.57,156.53,22.3594]
[1721135830018,6.3866,156.58,156.54,6.3881]
[1721135830226,2.33,156.6,156.53,15.971]
[1721135830517,6.3877,156.55,156.52,0.34]
[1721135830722,6.3877,156.55,156.51,45.34]
[1721135830917,6.3877,156.55,156.51,6.3893]
[1721135831294,6.3882,156.54,156.5,44.4396]
[1721135832210,0.33,156.58,156.5,38.0499]
[1721135832418,6.3878,156.55,156.51,6.3893]
[1721135832992,6.7181,156.54,156.5,38.0499]
[1721135833215,6.389,156.52,156.48,7.2324054]
[1721135833698,6.7194,156.51,156.48,0.8419054]
[1721135833898,6.7199,156.5,156.48,0.8419054]
[1721135834100,6.3899,156.5,156.48,0.8419054]
[1721135834925,6.7201,156.49,156.48,0.8419054]
[1721135835227,6.3901,156.49,156.48,0.8419054]
[1721135835395,6.3898,156.5,156.48,0.8419054]
[1721135835810,6.3901,156.49,156.48,0.8419054]
[1721135836297,6.3898,156.5,156.48,0.8419054]
[1721135837720,6.3893,156.51,156.48,0.8419054]
[1721135837894,6.3895,156.51,156.48,0.8419054]